fUST/lending_fUST_20250511
["ID","MTS","AMOUNT","RATE_DAILY","PERIOD"]
[360655556,1746917450972,-400.0,8.219e-05,2]
[360655559,1746917450982,-405.30012704,8.219e-05,2]
[360655561,1746917450992,-400.0,8.219e-05,2]
[360655563,1746917451001,-400.0,8.219e-05,2]
[360655565,1746917451010,-400.0,8.219e-05,2]
[360655567,1746917451020,-400.0,8.219e-05,2]
[360655569,1746917451031,-500.0,8.382e-05,2]
[360655571,1746917451041,-500.0,8.382e-05,2]
[360655573,1746917451050,-151.0,8.382e-05,2]
[360655575,1746917451060,-151.0,8.382e-05,2]
[360655577,1746917451070,-218.043711,8.383e-05,2]
[360655579,1746917451080,-151.0,8.383e-05,2]
[360655581,1746917451090,-151.0,8.383e-05,2]
[360655583,1746917451099,-151.0,8.383e-05,2]
[360655585,1746917451110,-156.296959,8.383e-05,2]
[360655587,1746917451120,-151.0,8.383e-05,2]
[360655589,1746917451130,-276.495325,8.383e-05,2]
[360655592,1746917451140,-151.0,8.383e-05,2]
[360655594,1746917451151,-151.0,8.383e-05,2]
[360655595,1746917451160,-151.0,8.383e-05,2]
[360655597,1746917451170,-151.0,8.383e-05,2]
[360655599,1746917451180,-151.0,8.383e-05,2]
[360655602,1746917451191,-151.0,8.383e-05,2]
[360655603,1746917451200,-151.0,8.383e-05,2]
[360655606,1746917451210,-183.16406,8.383e-05,2]
[360655608,1746917451220,-151.0,8.383e-05,2]
[360655609,1746917451229,-24900.0,8.383e-05,2]
[360655611,1746917451239,-400.0,8.493e-05,2]
[360655614,1746917451249,-510.61434955,8.493e-05,2]
[360655615,1746917451259,-326.94,8.493e-05,2]
[360655618,1746917451268,-400.0,8.493e-05,2]
[360655620,1746917451278,-400.0,8.493e-05,2]
[360655622,1746917451288,-400.0,8.493e-05,2]
[360655624,1746917451298,-400.0,8.493e-05,2]
[360655626,1746917451308,-400.0,8.493e-05,2]
[360655628,1746917451318,-400.0,8.493e-05,2]
[360655630,1746917451328,-204.59,8.493e-05,2]
[360655632,1746917451337,-400.0,8.493e-05,2]
[360655634,1746917451347,-400.0,8.493e-05,2]
[360655636,1746917451356,-443.11,8.493e-05,2]
[360655638,1746917451366,-216.93,8.493e-05,2]
[360655640,1746917451376,-400.0,8.493e-05,2]
[360655642,1746917451386,-400.0,8.493e-05,2]
[360655644,1746917451396,-400.0,8.493e-05,2]
[360655646,1746917451406,-400.0,8.493e-05,2]
[360655648,1746917451415,-439.87,8.493e-05,2]
[360655650,1746917451424,-400.0,8.493e-05,2]
[360655652,1746917451435,-400.0,8.493e-05,2]
[360655654,1746917451445,-400.0,8.493e-05,2]
[360655656,1746917451455,-400.0,8.493e-05,2]
[360655658,1746917451464,-400.0,8.493e-05,2]
[360655660,1746917451474,-400.0,8.493e-05,2]
[360655662,1746917451485,-400.0,8.493e-05,2]
[360655664,1746917451494,-400.0,8.493e-05,2]
[360655666,1746917451504,-400.0,8.493e-05,2]
[360655668,1746917451514,-400.0,8.493e-05,2]
[360655670,1746917451524,-420.37,8.493e-05,2]
[360655672,1746917451534,-437.42,8.493e-05,2]
[360655674,1746917451544,-400.0,8.493e-05,2]
[360655676,1746917451554,-400.0,8.493e-05,2]
[360655678,1746917451564,-400.0,8.493e-05,2]
[360655680,1746917451574,-400.0,8.493e-05,2]
[360655682,1746917451584,-400.0,8.493e-05,2]
[360655684,1746917451594,-400.0,8.493e-05,2]
[360655686,1746917451604,-400.0,8.493e-05,2]
[360655688,1746917451613,-400.0,8.493e-05,2]
[360655690,1746917451623,-515.08213661,8.493e-05,2]
[360655692,1746917451633,-400.0,8.493e-05,2]
[360655694,1746917451643,-400.0,8.493e-05,2]
[360655696,1746917451652,-400.0,8.493e-05,2]
[360655698,1746917451662,-525.72,8.493e-05,2]
[360655700,1746917451672,-400.0,8.493e-05,2]
[360655703,1746917451682,-289.62,8.493e-05,2]
[360655705,1746917451693,-400.0,8.493e-05,2]
[360655707,1746917451702,-400.0,8.493e-05,2]
[360655709,1746917451712,-484.63,8.493e-05,2]
[360655710,1746917451724,-400.0,8.493e-05,2]
[360655712,1746917451733,-413.3159763,8.493e-05,2]
[360655714,1746917451743,-516.22620819,8.493e-05,2]
[360655717,1746917451752,-400.0,8.493e-05,2]
[360655718,1746917451762,-403.78525357,8.493e-05,2]
[360655720,1746917451771,-397.88547737,8.493e-05,2]
[360655723,1746917451780,-400.0,8.493e-05,2]
[360655725,1746917451790,-400.0,8.493e-05,2]
[360655727,1746917451799,-400.0,8.493e-05,2]
[360655729,1746917451809,-402.20621906,8.493e-05,2]
[360655731,1746917451819,-400.0,8.493e-05,2]
[360655733,1746917451831,-400.0,8.493e-05,2]
[360655735,1746917451841,-400.0,8.493e-05,2]
[360655737,1746917451852,-400.0,8.493e-05,2]
[360655739,1746917451862,-400.0,8.493e-05,2]
[360655741,1746917451872,-400.0,8.493e-05,2]
[360655743,1746917451881,-400.0,8.493e-05,2]
[360655745,1746917451891,-400.0,8.493e-05,2]
[360655747,1746917451901,-409.8,8.493e-05,2]
[360655749,1746917451912,-400.0,8.493e-05,2]
[360655751,1746917451923,-400.0,8.493e-05,2]
[360655753,1746917451932,-400.0,8.493e-05,2]
[360655755,1746917451942,-400.0,8.493e-05,2]
[360655757,1746917451951,-548.1705869,8.493e-05,2]
[360655759,1746917451961,-411.69198738,8.493e-05,2]
[360655761,1746917451970,-400.0,8.493e-05,2]
[360655763,1746917451980,-400.0,8.493e-05,2]
[360655765,1746917451990,-400.0,8.493e-05,2]
[360655767,1746917452000,-400.0,8.493e-05,2]
[360655769,1746917452010,-400.0,8.493e-05,2]
[360655771,1746917452019,-400.0,8.493e-05,2]
[360655773,1746917452028,-400.0,8.493e-05,2]
[360655775,1746917452038,-400.0,8.493e-05,2]
[360655777,1746917452047,-400.0,8.493e-05,2]
[360655779,1746917452056,-200.00451231,8.493e-05,2]
[360655781,1746917452066,-400.0,8.493e-05,2]
[360655783,1746917452075,-400.0,8.493e-05,2]
[360655785,1746917452084,-400.0,8.493e-05,2]
[360655787,1746917452093,-400.0,8.493e-05,2]
[360655789,1746917452102,-400.0,8.493e-05,2]
[360655791,1746917452111,-400.0,8.493e-05,2]
[360655793,1746917452121,-400.0,8.493e-05,2]
[360655795,1746917452130,-400.0,8.493e-05,2]
[360655797,1746917452139,-400.0,8.493e-05,2]
[360655799,1746917452149,-400.0,8.493e-05,2]
[360655801,1746917452158,-469.54,8.493e-05,2]
[360655803,1746917452168,-400.0,8.493e-05,2]
[360655805,1746917452177,-400.0,8.493e-05,2]
[360655807,1746917452187,-400.0,8.493e-05,2]
[360655809,1746917452196,-400.0,8.493e-05,2]
[360655811,1746917452205,-402.53877945,8.493e-05,2]
[360655813,1746917452215,-400.0,8.493e-05,2]
[360655815,1746917452224,-400.0,8.493e-05,2]
[360655817,1746917452234,-400.0,8.493e-05,2]
[360655819,1746917452244,-400.0,8.493e-05,2]
[360655821,1746917452253,-400.0,8.493e-05,2]
[360655823,1746917452262,-151.0,8.493e-05,2]
[360655825,1746917452272,-482.6107464,8.493e-05,2]
[360655827,1746917452281,-400.0,8.493e-05,2]
[360655830,1746917452291,-151.0,8.493e-05,2]
[360655832,1746917452302,-400.0,8.493e-05,2]
[360655833,1746917452311,-387.93,8.493e-05,2]
[360655836,1746917452321,-209.02321507,8.493e-05,2]
[360655838,1746917452331,-400.0,8.493e-05,2]
[360655839,1746917452341,-316.56,8.493e-05,2]
[360655842,1746917452351,-400.0,8.493e-05,2]
[360655844,1746917452360,-400.0,8.493e-05,2]
[360655846,1746917452370,-400.0,8.493e-05,2]
[360655848,1746917452380,-151.0,8.493e-05,2]
[360655850,1746917452390,-244.26,8.493e-05,2]
[360655851,1746917452399,-415.00582594,8.493e-05,2]
[360655853,1746917452409,-345.68583147,8.493e-05,2]
[360655856,1746917452419,-400.0,8.493e-05,2]
[360655858,1746917452428,-214.833564,8.493e-05,2]
[360655860,1746917452444,-400.0,8.493e-05,2]
[360655863,1746917452457,-400.0,8.493e-05,2]
[360655865,1746917452471,-400.0,8.493e-05,2]
[360655867,1746917452485,-400.0,8.493e-05,2]
[360655870,1746917452498,-400.0,8.493e-05,2]
[360655872,1746917452511,-151.0,8.493e-05,2]
[360655875,1746917452522,-433.74,8.493e-05,2]
[360655877,1746917452533,-409.45683998,8.493e-05,2]
[360655879,1746917452546,-151.0,8.493e-05,2]
[360655881,1746917452558,-151.0,8.493e-05,2]
[360655883,1746917452569,-323.51018994,8.493e-05,2]
[360655886,1746917452580,-151.0,8.493e-05,2]
[360655888,1746917452592,-252.29,8.493e-05,2]
[360655890,1746917452604,-400.0,8.493e-05,2]
[360655892,1746917452617,-151.0,8.493e-05,2]
[360655895,1746917452628,-151.0,8.493e-05,2]
[360655897,1746917452640,-400.0,8.493e-05,2]
[360655899,1746917452653,-400.0,8.493e-05,2]
[360655902,1746917452666,-617.59,8.493e-05,2]
[360655904,1746917452681,-400.0,8.493e-05,2]
[360655907,1746917452693,-151.0,8.493e-05,2]
[360655909,1746917452710,-400.0,8.493e-05,2]
[360655912,1746917452721,-400.0,8.493e-05,2]
[360655914,1746917452733,-400.0,8.493e-05,2]
[360655916,1746917452747,-400.0,8.493e-05,2]
[360655919,1746917452759,-400.0,8.493e-05,2]
[360655921,1746917452773,-269.28304796,8.493e-05,2]
[360655923,1746917452786,-400.0,8.493e-05,2]
[360655925,1746917452798,-212.35,8.493e-05,2]
[360655928,1746917452811,-151.0,8.493e-05,2]
[360655930,1746917452825,-892.34,8.493e-05,2]
[360655932,1746917452838,-400.0,8.493e-05,2]
[360655934,1746917452848,-400.0,8.493e-05,2]
[360655936,1746917452859,-400.0,8.493e-05,2]
[360655939,1746917452871,-400.0,8.493e-05,2]
[360655941,1746917452884,-400.0,8.493e-05,2]
[360655943,1746917452896,-400.0,8.493e-05,2]
[360655946,1746917452909,-413.80850114,8.493e-05,2]
[360655948,1746917452921,-400.0,8.493e-05,2]
[360655950,1746917452932,-218.20156658,8.493e-05,2]
[360655952,1746917452945,-400.0,8.493e-05,2]
[360655955,1746917452957,-400.0,8.493e-05,2]
[360655957,1746917452968,-400.0,8.493e-05,2]
[360655959,1746917452979,-151.0,8.493e-05,2]
[360655961,1746917452992,-159.27,8.493e-05,2]
[360655964,1746917453004,-406.79169901,8.493e-05,2]
[360655966,1746917453016,-345.16721323,8.493e-05,2]
[360655968,1746917453028,-151.0,8.493e-05,2]
[360655971,1746917453041,-152.675339,8.493e-05,2]
[360655973,1746917453051,-151.0,8.493e-05,2]
[360655975,1746917453062,-409.34572296,8.493e-05,2]
[360655977,1746917453072,-407.10831983,8.493e-05,2]
[360655979,1746917453082,-151.0,8.493e-05,2]
[360655981,1746917453092,-400.0,8.493e-05,2]
[360655983,1746917453103,-405.36435884,8.493e-05,2]
[360655985,1746917453115,-412.44689655,8.493e-05,2]
[360655988,1746917453128,-424.00872895,8.493e-05,2]
[360655990,1746917453140,-151.0,8.493e-05,2]
[360655992,1746917453152,-400.0,8.493e-05,2]
[360655994,1746917453163,-405.34728532,8.493e-05,2]
[360655997,1746917453174,-486.02,8.493e-05,2]
[360655999,1746917453185,-408.31704494,8.493e-05,2]
[360656001,1746917453197,-400.0,8.493e-05,2]
[360656003,1746917453208,-399.90798336,8.493e-05,2]
[360656005,1746917453221,-400.0,8.493e-05,2]
[360656008,1746917453233,-495.61344551,8.493e-05,2]
[360656010,1746917453245,-465.08430104,8.493e-05,2]
[360656012,1746917453256,-400.0,8.493e-05,2]
[360656014,1746917453267,-400.0,8.493e-05,2]
[360656016,1746917453278,-414.63895758,8.493e-05,2]
[360656019,1746917453288,-413.21159143,8.493e-05,2]
[360656021,1746917453300,-404.24425046,8.493e-05,2]
[360656023,1746917453311,-871.51,8.493e-05,2]
[360656025,1746917453321,-151.0,8.493e-05,2]
[360656027,1746917453332,-400.0,8.493e-05,2]
[360656030,1746917453344,-427.73,8.493e-05,2]
[360656032,1746917453354,-151.0,8.493e-05,2]
[360656034,1746917453367,-228.03,8.493e-05,2]
[360656036,1746917453378,-400.0,8.493e-05,2]
[360656038,1746917453390,-400.0,8.493e-05,2]
[360656041,1746917453401,-400.0,8.493e-05,2]
[360656043,1746917453412,-526.25,8.493e-05,2]
[360656045,1746917453423,-406.34664398,8.493e-05,2]
[360656047,1746917453437,-413.19861096,8.493e-05,2]
[360656049,1746917453448,-400.0,8.493e-05,2]
[360656052,1746917453459,-420.73839056,8.493e-05,2]
[360656054,1746917453470,-441.5,8.493e-05,2]
[360656056,1746917453482,-400.0,8.493e-05,2]
[360656058,1746917453494,-401.56,8.493e-05,2]
[360656060,1746917453506,-400.0,8.493e-05,2]
[360656063,1746917453518,-456.13,8.493e-05,2]
[360656065,1746917453529,-400.0,8.493e-05,2]
[360656067,1746917453541,-400.0,8.493e-05,2]
[360656069,1746917453552,-151.0,8.493e-05,2]
[360656070,1746917453564,-400.0,8.493e-05,2]
[360656071,1746917453575,-400.0,8.493e-05,2]
[360656072,1746917453587,-400.0,8.493e-05,2]
[360656073,1746917453598,-400.0,8.493e-05,2]
[360656074,1746917453609,-400.0,8.493e-05,2]
[360656075,1746917453621,-400.0,8.493e-05,2]
[360656076,1746917453632,-400.0,8.493e-05,2]
[360656077,1746917453643,-400.0,8.493e-05,2]
[360656078,1746917453653,-400.0,8.493e-05,2]
[360656079,1746917453665,-400.0,8.493e-05,2]
[360656080,1746917453675,-400.0,8.493e-05,2]
[360656081,1746917453689,-305.43,8.493e-05,2]
[360656082,1746917453700,-400.0,8.493e-05,2]
[360656084,1746917453711,-400.0,8.493e-05,2]
[360656086,1746917453722,-400.0,8.493e-05,2]
[360656088,1746917453733,-151.0,8.493e-05,2]
[360656090,1746917453744,-400.0,8.493e-05,2]
[360656092,1746917453755,-400.0,8.493e-05,2]
[360656094,1746917453766,-400.83,8.493e-05,2]
[360656097,1746917453777,-400.0,8.493e-05,2]
[360656099,1746917453788,-151.0,8.493e-05,2]
[360656101,1746917453799,-400.0,8.493e-05,2]
[360656103,1746917453809,-400.0,8.493e-05,2]
[360656105,1746917453820,-250.0,8.606e-05,2]
[360656108,1746917453835,-174.63390857,8.766e-05,2]
[360656110,1746917453846,-166.71981,8.766e-05,2]
[360656112,1746917453857,-505.01,8.767e-05,2]
[360656114,1746917453869,-400.0,8.767e-05,2]
[360656116,1746917453880,-400.0,8.767e-05,2]
[360656118,1746917453890,-151.04,8.767e-05,2]
[360656121,1746917453902,-400.0,8.767e-05,2]
[360656123,1746917453913,-406.48833305,8.767e-05,2]
[360656125,1746917453925,-400.0,8.767e-05,2]
[360656127,1746917453936,-400.0,8.767e-05,2]
[360656129,1746917453947,-400.0,8.767e-05,2]
[360656131,1746917453958,-470.61960958,8.767e-05,2]
[360656133,1746917453969,-400.0,8.767e-05,2]
[360656135,1746917453979,-400.0,8.767e-05,2]
[360656138,1746917453990,-419.84,8.767e-05,2]
[360656140,1746917454002,-192.04,8.767e-05,2]
[360656142,1746917454013,-400.0,8.767e-05,2]
[360656144,1746917454024,-400.0,8.767e-05,2]
[360656146,1746917454035,-400.0,8.767e-05,2]
[360656148,1746917454045,-400.0,8.767e-05,2]
[360656150,1746917454056,-369.57,8.767e-05,2]
[360656153,1746917454066,-400.0,8.767e-05,2]
[360656155,1746917454077,-400.0,8.767e-05,2]
[360656157,1746917454088,-400.0,8.767e-05,2]
[360656159,1746917454098,-400.0,8.767e-05,2]
[360656161,1746917454109,-151.0,8.767e-05,2]
[360656163,1746917454119,-400.0,8.767e-05,2]
[360656165,1746917454130,-400.0,8.767e-05,2]
[360656167,1746917454141,-400.0,8.767e-05,2]
[360656169,1746917454152,-400.0,8.767e-05,2]
[360656172,1746917454162,-417.60361028,8.767e-05,2]
[360656174,1746917454173,-186.245263,8.767e-05,2]
[360656176,1746917454183,-151.0,8.767e-05,2]
[360656178,1746917454195,-400.0,8.767e-05,2]
[360656180,1746917454205,-151.0,8.767e-05,2]
[360656182,1746917454217,-400.0,8.767e-05,2]
[360656184,1746917454228,-152.20304,8.767e-05,2]
[360656186,1746917454239,-400.0,8.767e-05,2]
[360656188,1746917454250,-151.0,8.767e-05,2]
[360656190,1746917454260,-400.0,8.767e-05,2]
[360656192,1746917454271,-400.0,8.767e-05,2]
[360656195,1746917454283,-400.0,8.767e-05,2]
[360656197,1746917454294,-151.0,8.767e-05,2]
[360656199,1746917454305,-174.443874,8.767e-05,2]
[360656201,1746917454316,-400.0,8.767e-05,2]
[360656203,1746917454327,-400.0,8.767e-05,2]
[360656205,1746917454337,-400.0,8.767e-05,2]
[360656207,1746917454348,-151.0,8.767e-05,2]
[360656210,1746917454359,-400.0,8.767e-05,2]
[360656212,1746917454370,-400.0,8.767e-05,2]
[360656214,1746917454381,-400.0,8.767e-05,2]
[360656216,1746917454391,-152.16,8.767e-05,2]
[360656218,1746917454403,-151.0,8.767e-05,2]
[360656220,1746917454413,-151.0,8.767e-05,2]
[360656223,1746917454423,-151.0,8.767e-05,2]
[360656225,1746917454434,-162.390994,8.767e-05,2]
[360656227,1746917454444,-151.0,8.767e-05,2]
[360656229,1746917454455,-151.0,8.767e-05,2]
[360656231,1746917454466,-151.0,8.767e-05,2]
[360656233,1746917454476,-151.0,8.767e-05,2]
[360656235,1746917454487,-151.0,8.767e-05,2]
[360656237,1746917454498,-400.0,8.767e-05,2]
[360656240,1746917454510,-151.0,8.767e-05,2]
[360656242,1746917454520,-151.0,8.767e-05,2]
[360656243,1746917454532,-526.36,8.767e-05,2]
[360656245,1746917454542,-400.0,8.767e-05,2]
[360656247,1746917454553,-617.59,8.767e-05,2]
[360656272,1746917454564,-400.0,8.767e-05,2]
[360656275,1746917454803,-400.0,8.767e-05,2]
[360656277,1746917454813,-400.0,8.767e-05,2]
[360656279,1746917454823,-400.0,8.767e-05,2]
[360656281,1746917454835,-400.0,8.767e-05,2]
[360656283,1746917454844,-400.0,8.767e-05,2]
[360656284,1746917454855,-892.34,8.767e-05,2]
[360656286,1746917454865,-400.0,8.767e-05,2]
[360656289,1746917454875,-400.0,8.767e-05,2]
[360656291,1746917454884,-400.0,8.767e-05,2]
[360656293,1746917454894,-400.0,8.767e-05,2]
[360656295,1746917454906,-150.98,8.767e-05,2]
[360656297,1746917454916,-221.89,8.767e-05,2]
[360656299,1746917454925,-400.0,8.767e-05,2]
[360656301,1746917454934,-521.16,8.767e-05,2]
[360656303,1746917454943,-400.0,8.767e-05,2]
[360656305,1746917454953,-400.0,8.767e-05,2]
[360656307,1746917454962,-486.02,8.767e-05,2]
[360656309,1746917454973,-400.0,8.767e-05,2]
[360656311,1746917454983,-400.0,8.767e-05,2]
[360656313,1746917454992,-505.36,8.767e-05,2]
[360656315,1746917455001,-871.51,8.767e-05,2]
[360656317,1746917455011,-400.0,8.767e-05,2]
[360656319,1746917455021,-247.249704,8.767e-05,2]
[360656320,1746917455030,-175.20467805,8.767e-05,2]
[360656323,1746917455040,-400.0,8.767e-05,2]
[360656325,1746917455050,-400.0,8.767e-05,2]
[360656326,1746917455059,-466.38476641,8.767e-05,2]
[360656329,1746917455068,-441.5,8.767e-05,2]
[360656330,1746917455078,-400.0,8.767e-05,2]
[360656332,1746917455087,-400.0,8.767e-05,2]
[360656334,1746917455097,-400.0,8.767e-05,2]
[360656336,1746917455107,-405.58664551,8.767e-05,2]
[360656338,1746917455117,-151.0,8.767e-05,2]
[360656340,1746917455126,-400.0,8.767e-05,2]
[360656342,1746917455136,-461.26404211,8.767e-05,2]
[360656344,1746917455146,-200.0,8.767e-05,2]
[360656346,1746917455155,-400.0,8.767e-05,2]
[360656349,1746917455165,-400.0,8.767e-05,2]
[360656350,1746917455174,-400.0,8.767e-05,2]
[360656352,1746917455183,-400.0,8.767e-05,2]
[360656354,1746917455195,-400.0,8.767e-05,2]
[360656357,1746917455204,-400.0,8.767e-05,2]
[360656358,1746917455213,-400.0,8.767e-05,2]
[360656360,1746917455222,-400.0,8.767e-05,2]
[360656362,1746917455232,-151.0,8.767e-05,2]
[360656364,1746917455241,-400.0,8.767e-05,2]
[360656366,1746917455251,-190.19,8.767e-05,2]
[360656368,1746917455260,-400.0,8.767e-05,2]
[360656370,1746917455270,-492.17664266,8.767e-05,2]
[360656372,1746917455280,-238.8,8.767e-05,2]
[360656374,1746917455289,-500.0,8.798e-05,2]
[360656376,1746917455299,-783.55154896,8.843e-05,2]
[360656378,1746917455308,-500.0,8.998e-05,2]
[360656380,1746917455318,-500.0,8.998e-05,2]
[360656382,1746917455327,-420.0,9.029e-05,2]
[360656384,1746917455336,-415.0,9.029e-05,2]
[360656386,1746917455345,-400.0,9.041e-05,2]
[360656388,1746917455355,-400.0,9.041e-05,2]
[360656391,1746917455364,-400.0,9.041e-05,2]
[360656393,1746917455375,-400.0,9.041e-05,2]
[360656394,1746917455385,-400.0,9.041e-05,2]
[360656396,1746917455394,-400.0,9.041e-05,2]
[360656399,1746917455404,-400.0,9.041e-05,2]
[360656401,1746917455414,-400.0,9.041e-05,2]
[360656403,1746917455424,-400.0,9.041e-05,2]
[360656405,1746917455433,-400.0,9.041e-05,2]
[360656407,1746917455446,-400.0,9.041e-05,2]
[360656409,1746917455456,-400.0,9.041e-05,2]
[360656411,1746917455465,-400.0,9.041e-05,2]
[360656413,1746917455474,-400.0,9.041e-05,2]
[360656415,1746917455484,-400.0,9.041e-05,2]
[360656417,1746917455494,-400.0,9.041e-05,2]
[360656419,1746917455503,-264.8,9.041e-05,2]
[360656421,1746917455512,-400.0,9.041e-05,2]
[360656423,1746917455522,-400.0,9.041e-05,2]
[360656424,1746917455531,-308.62053608,9.041e-05,2]
[360656427,1746917455540,-400.0,9.041e-05,2]
[360656428,1746917455549,-373.2855298,9.041e-05,2]
[360656430,1746917455559,-400.0,9.041e-05,2]
[360656432,1746917455568,-151.0,9.041e-05,2]
[360656434,1746917455577,-167.12,9.041e-05,2]
[360656436,1746917455587,-617.59,9.041e-05,2]
[360656438,1746917455596,-400.0,9.041e-05,2]
[360656440,1746917455606,-151.0,9.041e-05,2]
[360656442,1746917455615,-400.0,9.041e-05,2]
[360656444,1746917455624,-219.53,9.041e-05,2]
[360656446,1746917455633,-176.12,9.041e-05,2]
[360656448,1746917455644,-400.0,9.041e-05,2]
[360656450,1746917455654,-400.0,9.041e-05,2]
[360656452,1746917455663,-201.194555,9.041e-05,2]
[360656454,1746917455673,-892.34,9.041e-05,2]
[360656456,1746917455682,-400.0,9.041e-05,2]
[360656458,1746917455695,-400.0,9.041e-05,2]
[360656460,1746917455704,-151.0,9.041e-05,2]
[360656462,1746917455715,-151.0,9.041e-05,2]
[360656464,1746917455725,-151.0,9.041e-05,2]
[360656466,1746917455736,-151.0,9.041e-05,2]
[360656468,1746917455745,-367.62,9.041e-05,2]
[360656470,1746917455755,-151.0,9.041e-05,2]
[360656472,1746917455765,-400.0,9.041e-05,2]
[360656474,1746917455774,-486.02,9.041e-05,2]
[360656477,1746917455784,-400.0,9.041e-05,2]
[360656479,1746917455793,-400.0,9.041e-05,2]
[360656481,1746917455803,-151.0,9.041e-05,2]
[360656483,1746917455812,-871.51,9.041e-05,2]
[360656484,1746917455822,-400.0,9.041e-05,2]
[360656486,1746917455835,-400.0,9.041e-05,2]
[360656489,1746917455846,-464.25,9.041e-05,2]
[360656491,1746917455855,-441.5,9.041e-05,2]
[360656493,1746917455866,-412.97,9.041e-05,2]
[360656495,1746917455875,-400.0,9.041e-05,2]
[360656497,1746917455885,-400.0,9.041e-05,2]
[360656499,1746917455895,-151.0,9.041e-05,2]
[360656500,1746917455907,-400.0,9.041e-05,2]
[360656503,1746917455916,-400.0,9.041e-05,2]
[360656504,1746917455926,-400.0,9.041e-05,2]
[360656506,1746917455935,-400.0,9.041e-05,2]
[360656508,1746917455944,-400.0,9.041e-05,2]
[360656510,1746917455953,-400.0,9.041e-05,2]
[360656512,1746917455962,-400.0,9.041e-05,2]
[360656514,1746917455971,-400.0,9.041e-05,2]
[360656516,1746917455980,-400.0,9.041e-05,2]
[360656518,1746917455990,-400.0,9.041e-05,2]
[360656520,1746917455999,-1893.46,9.2e-05,2]
[360656522,1746917456009,-400.0,9.315e-05,2]
[360656524,1746917456021,-400.0,9.315e-05,2]
[360656526,1746917456031,-400.0,9.315e-05,2]
[360656528,1746917456041,-400.0,9.315e-05,2]
[360656530,1746917456051,-221.76520313,9.315e-05,2]
[360656532,1746917456062,-192.45,9.315e-05,2]
[360656534,1746917456071,-400.0,9.315e-05,2]
[360656536,1746917456083,-400.0,9.315e-05,2]
[360656538,1746917456093,-514.36,9.315e-05,2]
[360656540,1746917456103,-390.64585827,9.315e-05,2]
[360656542,1746917456113,-400.0,9.315e-05,2]
[360656544,1746917456123,-400.0,9.315e-05,2]
[360656546,1746917456132,-156.24,9.315e-05,2]
[360656548,1746917456141,-151.0,9.315e-05,2]
[360656550,1746917456151,-400.0,9.315e-05,2]
[360656552,1746917456161,-282.21,9.315e-05,2]
[360656554,1746917456170,-400.0,9.315e-05,2]
[360656556,1746917456179,-151.0,9.315e-05,2]
[360656558,1746917456189,-400.0,9.315e-05,2]
[360656560,1746917456198,-301.57,9.315e-05,2]
[360656562,1746917456208,-400.0,9.315e-05,2]
[360656564,1746917456218,-151.0,9.315e-05,2]
[360656566,1746917456228,-151.0,9.315e-05,2]
[360656568,1746917456237,-151.0,9.315e-05,2]
[360656570,1746917456246,-151.0,9.315e-05,2]
[360656572,1746917456255,-151.0,9.315e-05,2]
[360656574,1746917456265,-151.0,9.315e-05,2]
[360656576,1746917456274,-151.0,9.315e-05,2]
[360656578,1746917456283,-400.0,9.315e-05,2]
[360656580,1746917456292,-151.0,9.315e-05,2]
[360656582,1746917456302,-151.0,9.315e-05,2]
[360656584,1746917456312,-617.59,9.315e-05,2]
[360656586,1746917456322,-527.87,9.315e-05,2]
[360656588,1746917456331,-400.0,9.315e-05,2]
[360656590,1746917456341,-400.0,9.315e-05,2]
[360656592,1746917456351,-400.0,9.315e-05,2]
[360656594,1746917456360,-892.34,9.315e-05,2]
[360656596,1746917456371,-415.99,9.315e-05,2]
[360656598,1746917456381,-400.0,9.315e-05,2]
[360656601,1746917456392,-400.0,9.315e-05,2]